bitfinex/quotes_ETHUSD_20240922
["timestamp","ask_amount","ask_price","bid_price","bid_amount"]
[1727011306070,7.43125807,2588.8,2588.7,3.86285]
[1727011306277,9.45415494,2588.8,2588.7,3.86285]
[1727011306643,7.11620014,2588.8,2588.7,3.86285]
[1727011306842,6.10207732,2588.8,2588.7,6.16405]
[1727011309372,6.10207732,2588.8,2588.7,3.86285]
[1727011309876,6.41713525,2588.8,2588.7,3.86285]
[1727011310475,4.07913525,2588.8,2588.7,3.86285]
[1727011310665,6.10316137,2588.8,2588.7,3.86285]
[1727011311117,6.94727751,2588.8,2588.7,3.86285]
[1727011311470,4.92325139,2588.8,2588.7,3.86285]
[1727011313005,5.16864813,2588.8,2588.7,3.86285]
[1727011313204,6.94743654,2588.8,2588.7,3.86285]
[1727011314695,6.95824503,2588.8,2588.7,3.86285]
[1727011315470,4.93386415,2588.8,2588.7,3.86285]
[1727011316436,4.93386415,2588.8,2588.6,3.86308]
[1727011316577,6.53313011,2588.7,2588.6,7.726]
[1727011316779,6.60639087,2588.7,2588.6,3.863]
[1727011317522,6.91971006,2588.7,2588.6,3.863]
[1727011318379,8.94418217,2588.7,2588.6,3.863]
[1727011318576,6.91971006,2588.7,2588.6,3.863]
[1727011319504,6.91971006,2588.7,2588.5,3.86323]
[1727011319690,5.03437122,2588.6,2588.5,3.86323]
[1727011320095,5.10755857,2588.6,2588.5,3.86323]
[1727011322532,2.87128409,2588.6,2588.5,3.86323]
[1727011322708,5.10713905,2588.6,2588.5,3.86323]
[1727011324195,7.13086172,2588.6,2588.5,3.86323]
[1727011324725,7.13080277,2588.6,2588.5,3.86323]
[1727011325428,7.13082421,2588.6,2588.5,3.86323]
[1727011325601,5.10713905,2588.6,2588.5,3.86323]
[1727011327436,5.10672699,2588.6,2588.5,3.86323]
[1727011327748,5.10672699,2588.6,2588.4,3.86337]
[1727011327886,6.78252067,2588.5,2588.4,7.72668]
[1727011328084,4.75870401,2588.5,2588.4,7.72668]
[1727011328341,4.82937467,2588.5,2588.4,7.72668]
[1727011330906,6.85333871,2588.5,2588.4,7.72668]
[1727011331526,4.82937467,2588.5,2588.4,7.72668]
[1727011331713,6.85354828,2588.5,2588.4,7.72668]
[1727011332426,4.09802193,2588.5,2588.4,7.72668]
[1727011332632,6.12242849,2588.5,2588.4,7.72668]
[1727011334216,6.12267384,2588.5,2588.4,7.72668]
[1727011334417,4.09802193,2588.5,2588.4,7.72668]
[1727011335047,4.09879383,2588.5,2588.4,7.72668]
[1727011335247,5.08739087,2588.5,2588.4,7.72668]
[1727011336452,7.51725914,2588.5,2588.4,7.72668]
[1727011336653,5.08739087,2588.5,2588.4,7.72668]
[1727011337010,5.09651906,2588.5,2588.4,7.72668]
[1727011337542,7.52721358,2588.5,2588.4,7.72668]
[1727011337909,5.09651906,2588.5,2588.4,7.72668]
[1727011338111,4.10792202,2588.5,2588.4,10.06888]
[1727011338353,6.13359571,2588.5,2588.4,10.06888]
[1727011338531,4.10792202,2588.5,2588.4,10.06888]
[1727011339661,6.13359571,2588.5,2588.4,10.06888]
[1727011340844,4.10792202,2588.5,2588.4,10.06888]
[1727011341169,4.10792202,2588.5,2588.4,7.72668]
[1727011341969,4.11020362,2588.5,2588.4,7.72668]
[1727011342172,5.00544615,2588.5,2588.4,7.72668]
[1727011342374,7.43856785,2588.5,2588.4,3.86331]
[1727011343586,7.43900786,2588.5,2588.4,3.86331]
[1727011344172,7.4389814,2588.5,2588.4,3.86331]
[1727011345343,6.54373887,2588.5,2588.4,3.86331]
[1727011345667,4.11020362,2588.5,2588.4,6.34701]
[1727011346555,4.11064142,2588.5,2588.4,6.34701]
[1727011347485,4.11064142,2588.5,2588.4,3.86331]
[1727011347824,6.54422017,2588.5,2588.4,3.86331]
[1727011348310,7.94840349,2588.5,2588.4,3.86331]
[1727011348518,5.51482474,2588.5,2588.4,3.86331]
[1727011350204,7.94882721,2588.5,2588.4,3.86331]
[1727011350528,5.51482474,2588.5,2588.4,3.86331]
[1727011351008,5.51482474,2588.5,2588.3,3.86352]
[1727011351009,5.51482474,2588.5,2588.3,7.72696]
[1727011351227,5.11628076,2588.4,2588.3,7.72696]
[1727011351539,5.1821438,2588.4,2588.3,7.72696]
[1727011353142,5.1821438,2588.4,2588.3,3.86344]
[1727011353644,5.1821438,2588.4,2588.2,3.86359]
[1727011353802,6.47388578,2588.3,2588.2,3.86359]
[1727011354011,7.81018536,2588.3,2588.2,3.86359]
[1727011355542,7.78537034,2588.3,2588.0,3.86386]
[1727011355744,2.4339499,2588.1,2588.0,3.86386]
[1727011355947,6.47392066,2588.1,2588.0,3.86386]
[1727011356246,7.83887598,2588.1,2588.0,3.86386]
[1727011356905,5.40486932,2588.1,2588.0,3.86386]
[1727011357137,7.8385562,2588.1,2588.0,3.86386]
[1727011358303,6.53270666,2588.1,2588.0,3.86386]
[1727011358507,4.09901978,2588.1,2588.0,3.86386]
[1727011359542,4.09901978,2588.1,2588.0,6.34756]
[1727011360858,5.73245568,2588.1,2588.0,9.34756]
[1727011361061,3.54817512,2588.1,2588.0,10.67253057]
[1727011362250,3.14269797,2588.1,2588.0,10.67253057]
[1727011362672,2.33179382,2588.1,2588.0,10.67253057]
[1727011362967,3.14274581,2588.1,2588.0,10.67253057]
[1727011363331,3.14273584,2588.1,2588.0,10.67253057]
[1727011363627,3.14275019,2588.1,2588.0,10.67253057]
[1727011365672,3.1677933,2588.1,2588.0,10.67253057]
[1727011367958,2.35683693,2588.1,2588.0,10.67253057]
[1727011368159,3.16773543,2588.1,2588.0,10.67253057]
[1727011368978,2.35683693,2588.1,2588.0,10.67253057]
[1727011369500,3.57321823,2588.1,2588.0,6.86386]
[1727011369700,5.81158628,2588.1,2588.0,6.86386]
[1727011369861,4.18971283,2588.1,2588.0,6.86386]
[1727011370057,6.21703731,2588.1,2588.0,6.86386]
[1727011370363,7.06815104,2588.1,2588.0,6.86386]
[1727011372505,6.21703731,2588.1,2588.0,6.86386]
[1727011373163,4.18971283,2588.1,2588.0,6.86386]
[1727011373507,6.21703731,2588.1,2588.0,6.86386]
[1727011375322,6.2165601,2588.1,2588.0,6.86386]
[1727011375682,6.2165601,2588.1,2588.0,3.86386]
[1727011375888,7.57787444,2588.1,2588.0,3.86386]
[1727011376134,6.48355593,2588.1,2588.0,3.86386]
[1727011376630,8.91608094,2588.1,2588.0,3.86386]
[1727011379000,6.48355593,2588.1,2588.0,3.86386]
[1727011380310,4.18945593,2588.1,2588.0,3.86386]
[1727011380525,6.21624103,2588.1,2588.0,3.86386]
[1727011380739,6.21622321,2588.1,2588.0,3.86386]
[1727011381109,4.18945593,2588.1,2588.0,3.86386]
[1727011381410,6.21619159,2588.1,2588.0,3.86386]
[1727011381612,6.21620353,2588.1,2588.0,3.86386]
[1727011382026,6.21617755,2588.1,2588.0,3.91386]
[1727011382223,5.27942878,2588.1,2588.0,3.91386]
[1727011382999,5.23951462,2588.1,2588.0,3.91386]
[1727011383239,6.44007545,2588.1,2588.0,3.91386]
[1727011384445,8.87225497,2588.1,2588.0,3.91386]
[1727011387951,8.87190994,2588.1,2588.0,3.91386]
[1727011388847,8.87190994,2588.1,2588.0,0.05]
[1727011389647,8.87190994,2588.1,2588.0,3.91398]
[1727011389845,10.04283486,2588.1,2588.0,3.91398]
[1727011390606,10.04283486,2588.1,2588.0,0.05]
[1727011391526,7.61082975,2588.1,2588.0,0.05]
[1727011392713,7.6105076,2588.1,2588.0,0.05]
[1727011395262,7.61025571,2588.1,2588.0,0.05]
[1727011397424,7.60981484,2588.1,2588.0,0.05]
[1727011398425,7.60981484,2588.1,2587.9,0.0381057]
[1727011398426,5.35881484,2588.1,2587.9,0.01977066]
[1727011398667,7.19271752,2588.0,2587.9,0.01977066]
[1727011398846,7.25125964,2588.0,2587.9,0.01977066]
[1727011399266,9.68189162,2588.0,2587.9,0.01977066]
[1727011399471,7.25125964,2588.0,2587.9,0.01977066]
[1727011400268,9.68190445,2588.0,2587.9,0.01977066]
[1727011400762,7.25125964,2588.0,2587.9,0.01977066]
[1727011401187,4.18076617,2588.0,2587.9,3.88390066]
[1727011401327,6.20586625,2588.0,2587.9,6.16430066]
[1727011401529,4.18076617,2588.0,2587.9,6.16430066]
[1727011401829,3.967943,2588.0,2587.9,6.16430066]
[1727011402168,5.8008189,2588.0,2587.9,6.16430066]
[1727011402369,5.79936457,2588.0,2587.9,6.16430066]
[1727011403465,6.98670261,2588.0,2587.9,3.88390066]
[1727011406387,4.17931184,2588.0,2587.9,3.88390066]
[1727011406582,6.20427031,2588.0,2587.9,3.88390066]
[1727011407094,5.79944543,2588.0,2587.9,6.88390066]
[1727011407400,5.79944543,2588.0,2587.9,9.16430066]
[1727011407958,4.17939982,2588.0,2587.9,9.16430066]
[1727011408265,5.79944543,2588.0,2587.9,9.16430066]
[1727011411719,5.80060906,2588.0,2587.9,9.16430066]
[1727011412577,3.56354619,2588.0,2587.9,10.46714973]
[1727011412783,0.97420029,2588.0,2587.9,10.46714973]
[1727011413030,0.05854212,2588.0,2587.9,10.46714973]
[1727011413319,0.81049436,2588.2,2588.1,6.14423]
[1727011413479,3.09961396,2588.2,2588.1,9.14423]
[1727011414680,3.09961396,2588.2,2588.1,10.96372397]
[1727011415023,2.34212632,2588.2,2588.1,10.96372397]
[1727011415220,3.15277571,2588.2,2588.1,10.96372397]
[1727011415522,0.96873448,2588.2,2588.1,10.96372397]
[1727011416515,0.05308664,2588.2,2588.1,10.96372397]
[1727011416722,0.81049436,2588.3,2588.2,9.14408]
[1727011416883,3.09874427,2588.3,2588.2,10.78557192]
[1727011417084,0.91529996,2588.3,2588.2,10.78557192]
[1727011417285,2.28823295,2588.3,2588.2,10.78557192]
[1727011417603,3.09872731,2588.3,2588.2,10.78557192]
[1727011418585,3.09872731,2588.3,2588.2,9.14408]
[1727011419724,3.09872731,2588.3,2588.2,6.86368]
[1727011419892,2.28823295,2588.3,2588.2,6.86368]
[1727011420105,3.09798037,2588.3,2588.2,6.86368]
[1727011420297,3.09789331,2588.3,2588.2,6.86368]
[1727011421118,3.09667573,2588.3,2588.2,6.86368]
[1727011426092,2.94662881,2588.3,2588.2,6.86368]
[1727011426407,2.94662881,2588.3,2588.2,3.86368]
[1727011426598,4.56667442,2588.3,2588.2,3.86368]
[1727011426912,4.77567945,2588.3,2588.2,3.86368]
[1727011427309,4.16073812,2588.3,2588.2,3.86368]
[1727011427713,4.16073812,2588.3,2588.2,6.86368]
[1727011430096,4.21416586,2588.3,2588.2,6.86368]
[1727011430801,4.21324877,2588.3,2588.2,6.86368]
[1727011432289,6.48294877,2588.3,2588.2,6.86368]
[1727011432522,8.71781287,2588.3,2588.2,6.86368]
[1727011432987,7.09776726,2588.3,2588.2,6.86368]
[1727011433194,8.71658938,2588.3,2588.2,6.86368]
[1727011433393,8.71663556,2588.3,2588.2,6.86368]
[1727011434989,9.12112411,2588.3,2588.2,6.86368]
[1727011438333,7.09776726,2588.3,2588.2,3.86368]
[1727011440231,9.12196935,2588.3,2588.2,3.86368]
[1727011440538,9.12307183,2588.3,2588.2,3.86368]
[1727011441138,9.12309501,2588.3,2588.2,3.86368]
[1727011441429,9.12335451,2588.3,2588.2,3.86368]
[1727011441628,7.09871475,2588.3,2588.2,3.86368]
[1727011441856,9.12333058,2588.3,2588.2,3.86368]
[1727011442008,9.1233243,2588.3,2588.2,3.86368]
[1727011442648,7.09871475,2588.3,2588.2,3.86368]
[1727011442858,9.12359537,2588.3,2588.2,3.86368]
[1727011443008,7.09871475,2588.3,2588.2,3.86368]
[1727011448424,9.52794325,2588.3,2588.2,3.86368]
[1727011448619,9.53318398,2588.3,2588.2,3.86368]
[1727011448835,7.10125644,2588.3,2588.2,3.86368]
[1727011449038,9.53318398,2588.3,2588.2,3.86368]
[1727011453322,4.81166898,2588.3,2588.2,3.86368]
[1727011453527,9.53430322,2588.3,2588.2,3.86368]
[1727011454267,7.26460322,2588.3,2588.2,3.86368]
[1727011454887,4.17248631,2588.3,2588.2,6.19858]
[1727011455273,6.19908198,2588.3,2588.2,6.19858]
[1727011456457,6.19908198,2588.3,2588.2,9.19858]
[1727011456861,4.17225479,2588.3,2588.2,9.19858]
[1727011457067,5.79375707,2588.3,2588.2,9.19858]
[1727011457654,4.17225479,2588.3,2588.2,9.19858]
[1727011458252,6.19908198,2588.3,2588.2,9.19858]
[1727011458449,4.17225479,2588.3,2588.2,9.19858]
[1727011458777,6.19944393,2588.3,2588.2,9.19858]
[1727011459501,7.06262957,2588.3,2588.2,6.86368]
[1727011459653,7.46803164,2588.3,2588.2,6.86368]
[1727011459991,5.0356192,2588.3,2588.2,6.86368]
[1727011460769,7.46803164,2588.3,2588.2,6.86368]
[1727011460985,5.0356192,2588.3,2588.2,6.86368]
[1727011461662,5.0356192,2588.3,2587.9,0.01977066]
[1727011461663,2.3327,2588.2,2588.0,3.8639]
[1727011461864,6.55224959,2588.1,2588.0,3.8639]
[1727011462060,6.60202744,2588.1,2588.0,3.8639]
[1727011462569,2.3327,2588.0,2587.9,0.01977066]
[1727011462785,7.1998615,2588.0,2587.9,0.01977066]
[1727011462999,10.08738207,2588.0,2587.9,0.01977066]
[1727011463158,12.37586113,2588.0,2587.9,0.01977066]
[1727011463357,7.24956755,2588.0,2587.9,0.01977066]
[1727011463559,10.08966088,2588.0,2587.9,0.01977066]
[1727011464109,10.08966088,2588.0,2587.5,3.86463]
[1727011464110,2.3327,2587.9,2587.6,3.0]
[1727011464334,2.43308579,2587.7,2587.6,3.0]
[1727011464600,6.55276842,2587.7,2587.6,3.0]
[1727011464812,6.55276842,2587.7,2587.5,7.72928]
[1727011464813,6.60229651,2587.7,2587.5,7.72928]
[1727011464975,8.83904702,2587.6,2587.5,6.86463]
[1727011465166,7.39074756,2587.6,2587.5,3.0]
[1727011465481,9.82227034,2587.6,2587.5,3.0]
[1727011466296,9.82227034,2587.6,2587.3,3.86494]
[1727011466507,2.3327,2587.4,2587.1,0.0381057]
[1727011466671,2.02557569,2587.2,2587.1,3.9033157]
[1727011466876,5.43930869,2587.2,2587.1,7.7685557]
[1727011467078,7.82102755,2587.2,2586.3,0.0381057]
[1727011467278,7.82102755,2587.2,2586.5,3.86622]
[1727011467279,1.62062382,2586.6,2586.5,3.86622]
[1727011467512,3.50528272,2586.6,2586.4,3.86636]
[1727011467693,4.11974495,2586.5,2586.4,3.86636]
[1727011467899,5.74032777,2586.5,2586.4,3.86636]
[1727011468104,5.78451311,2586.5,2586.4,3.86636]
[1727011468404,4.56264558,2586.5,2586.4,3.86636]
[1727011470378,3.34910509,2586.5,2586.4,3.86636]
[1727011471615,4.15663232,2586.5,2586.4,3.86636]
[1727011472508,3.34461747,2586.5,2586.4,3.86636]
[1727011472667,1.97733849,2586.5,2586.4,3.86636]
[1727011472974,1.87035465,2586.5,2586.3,3.0381057]
[1727011473168,1.34380068,2586.4,2586.3,3.0381057]
[1727011473402,1.4934452,2586.4,2586.3,3.0381057]
[1727011473705,0.58193116,2586.4,2586.3,3.0381057]
[1727011474013,0.04565771,2586.4,2586.3,3.0381057]
[1727011475009,0.95635126,2586.4,2586.3,3.0381057]
[1727011475481,0.04565771,2586.4,2586.3,3.0381057]
[1727011476299,0.04565771,2586.4,2586.3,6.9046257]
[1727011476694,0.04165771,2586.4,2586.3,0.0381057]
[1727011476876,0.3538662,2586.4,2586.3,0.0381057]
[1727011477071,1.26388964,2586.4,2586.3,0.0381057]
[1727011477278,0.3538662,2586.4,2586.3,0.0381057]
[1727011478211,1.26358375,2586.4,2586.3,0.0381057]
[1727011478423,1.26328757,2586.4,2586.3,0.0381057]
[1727011478773,0.3538662,2586.4,2586.3,0.0381057]
[1727011480024,0.3538662,2586.4,2586.0,10.73378]
[1727011480025,2.4287,2586.3,2586.0,6.86687]
[1727011480322,0.40766585,2586.2,2586.0,6.86687]
[1727011480629,2.4287,2586.1,2585.8,11.24719]
[1727011480913,2.4287,2586.1,2585.8,7.73438]
[1727011481119,0.03845432,2586.0,2585.8,7.73438]
[1727011481481,0.03845432,2586.0,2585.9,3.86712]
[1727011481791,0.03845432,2586.0,2585.8,3.86719]
[1727011481991,0.28516975,2586.0,2585.8,7.73437]
[1727011482321,0.28516975,2586.0,2585.8,3.86718]
[1727011482883,0.28516975,2586.0,2585.6,6.9055957]
[1727011483085,2.4287,2585.9,2585.6,3.9055957]
[1727011483523,0.03802372,2585.8,2585.6,3.9055957]
[1727011484428,0.03802372,2585.8,2585.7,3.86741]
[1727011484589,0.03802372,2585.8,2585.6,0.0381057]
[1727011484785,0.80752723,2586.0,2585.6,0.0381057]
[1727011485030,2.46645173,2585.7,2585.6,0.0381057]
[1727011486292,2.4287,2585.7,2585.6,0.0381057]
[1727011488120,2.46643465,2585.7,2585.6,0.0381057]
[1727011488858,2.46643465,2585.7,2585.6,3.9056757]
[1727011490642,0.03773465,2585.7,2585.6,3.9056757]
[1727011491011,2.63080677,2585.9,2585.7,3.86728]
[1727011491211,0.26308068,2585.8,2585.7,3.86728]
[1727011491555,0.29957682,2585.8,2585.7,3.86728]
[1727011495014,0.26308068,2585.8,2585.7,3.86728]
[1727011495563,0.29961095,2585.8,2585.7,3.86728]
[1727011500209,0.03653027,2585.8,2585.7,3.86728]
[1727011500367,2.3436,2586.1,2586.0,3.86697]
[1727011500567,2.37896204,2586.1,2586.0,3.86697]
[1727011500766,0.03536204,2586.1,2586.0,3.86697]
[1727011501008,2.3436,2586.3,2586.2,3.86667]
[1727011501172,2.61336344,2586.3,2586.1,3.86681]
[1727011501369,2.61336344,2586.3,2586.1,7.73348]
[1727011501606,2.61336344,2586.3,2586.2,3.86667]
[1727011504411,5.67651885,2586.3,2586.2,3.86667]
[1727011504730,4.86955056,2586.3,2586.2,3.86667]
[1727011505113,3.51583829,2586.3,2586.2,3.86667]
[1727011505312,4.86965069,2586.3,2586.2,3.86667]
[1727011505649,3.09860035,2586.3,2586.2,3.86667]
[1727011506208,0.93787829,2586.3,2586.2,3.86667]
[1727011506409,0.84135809,2586.3,2586.2,3.86667]
[1727011506595,3.09961967,2586.3,2586.2,3.86667]
[1727011507492,3.50720551,2586.3,2586.2,3.86667]
[1727011508021,2.29366502,2586.3,2586.2,3.86667]
[1727011508434,3.50720551,2586.3,2586.2,3.86667]
[1727011509289,3.51248185,2586.3,2586.2,3.86667]
[1727011509508,5.73157155,2586.3,2586.2,3.86667]
[1727011510520,4.11094773,2586.3,2586.2,3.86667]
[1727011511398,6.13085099,2586.3,2586.2,3.86667]
[1727011512203,4.11094773,2586.3,2586.2,3.86667]
[1727011512411,6.13085099,2586.3,2586.2,3.86667]
[1727011513741,5.731127,2586.3,2586.2,6.25217]
[1727011513924,6.64253,2586.3,2586.2,6.25217]
[1727011514233,5.73711483,2586.3,2586.2,6.25217]
[1727011514435,5.73711483,2586.3,2586.2,9.25217]
[1727011514739,4.11693556,2586.3,2586.2,9.25217]
[1727011514941,3.52008195,2586.3,2586.2,9.25217]
[1727011515521,3.52011458,2586.3,2586.2,9.25217]
[1727011518355,2.30496182,2586.3,2586.2,9.25217]
[1727011518815,3.51990958,2586.3,2586.2,9.25217]
[1727011522517,2.30475682,2586.3,2586.2,9.25217]
[1727011522921,3.51990958,2586.3,2586.2,9.25217]
[1727011523354,2.30475682,2586.3,2586.2,9.25217]
[1727011523720,2.30393424,2586.3,2586.2,9.25217]
[1727011524476,3.519087,2586.3,2586.2,6.86667]
[1727011524672,4.21448326,2586.3,2586.2,6.86667]
[1727011528634,4.21389739,2586.3,2586.2,6.86667]
[1727011532382,2.99874463,2586.3,2586.2,6.86667]
[1727011532872,4.8137001,2586.3,2586.2,6.86667]
[1727011533479,6.43495206,2586.3,2586.2,6.86667]
[1727011535488,5.7395558,2586.3,2586.2,6.86667]
[1727011536479,3.5197507,2586.3,2586.2,9.20277]
[1727011536830,2.30442106,2586.3,2586.2,9.20277]
[1727011537128,3.11462257,2586.3,2586.2,9.20277]
[1727011537480,3.11466476,2586.3,2586.2,9.20277]
[1727011537916,2.30442106,2586.3,2586.2,9.20277]
[1727011538120,3.11467362,2586.3,2586.2,9.20277]
[1727011538328,3.5197507,2586.3,2586.2,9.20277]
[1727011541099,4.12114327,2586.3,2586.2,9.20277]
[1727011541497,5.74132254,2586.3,2586.2,9.20277]
[1727011541823,4.12114327,2586.3,2586.2,9.20277]
[1727011542199,5.74132254,2586.3,2586.2,9.20277]
[1727011542939,3.47230492,2586.3,2586.2,9.20277]
[1727011543283,3.92720366,2586.3,2586.2,9.20277]
[1727011543458,5.74392587,2586.3,2586.2,9.20277]
[1727011543600,5.74392587,2586.3,2586.2,6.86667]
[1727011544547,6.15081953,2586.3,2586.2,6.86667]
[1727011545036,4.1237466,2586.3,2586.2,6.86667]
[1727011545426,6.15081953,2586.3,2586.2,6.86667]
[1727011547858,6.15455293,2586.3,2586.2,6.86667]
[1727011550245,7.2725431,2586.3,2586.2,6.86667]
[1727011551059,9.7071319,2586.3,2586.2,6.86667]
[1727011552747,9.71067015,2586.3,2586.2,6.86667]
[1727011554260,7.27424132,2586.3,2586.2,6.86667]
[1727011555583,7.23883788,2586.3,2586.2,6.86667]
[1727011556178,9.67577369,2586.3,2586.2,6.86667]
[1727011557687,7.23962468,2586.3,2586.2,6.86667]
[1727011558478,9.67697287,2586.3,2586.2,6.86667]
[1727011558992,7.23962468,2586.3,2586.2,6.86667]
[1727011559183,9.67693774,2586.3,2586.2,6.86667]
[1727011559768,7.23962468,2586.3,2586.2,6.86667]
[1727011561053,7.23972738,2586.3,2586.2,6.86667]
[1727011562705,9.67700077,2586.3,2586.2,6.86667]
[1727011565665,4.96353638,2586.3,2586.2,6.86667]
[1727011565876,8.81796094,2586.3,2586.2,6.86667]
[1727011567770,6.38069576,2586.3,2586.2,3.86667]
[1727011567999,11.49579276,2586.3,2586.2,3.86667]
[1727011568183,9.2241718,2586.3,2586.2,3.86667]
[1727011568491,10.37375108,2586.3,2586.2,3.86667]
[1727011568708,12.64537204,2586.3,2586.2,3.86667]
[1727011568879,10.37375108,2586.3,2586.2,3.86667]
[1727011569384,12.64537204,2586.3,2586.2,3.86667]
[1727011569586,10.37375108,2586.3,2586.2,3.86667]
[1727011569971,12.64537204,2586.3,2586.2,3.86667]
[1727011570171,10.37375108,2586.3,2586.2,3.86667]
[1727011570625,12.64451216,2586.3,2586.2,3.86667]
[1727011570775,10.3728912,2586.3,2586.2,3.86667]
[1727011571290,12.64451216,2586.3,2586.2,3.86667]
[1727011571473,10.3728912,2586.3,2586.2,3.86667]
[1727011571671,12.64451216,2586.3,2586.2,3.86667]
[1727011571924,9.80150825,2586.3,2586.2,3.86667]
[1727011572104,12.64451216,2586.3,2586.2,3.86667]
[1727011572313,10.3728912,2586.3,2586.2,3.86667]
[1727011572484,7.52988729,2586.3,2586.2,3.86667]
[1727011574445,5.24198729,2586.3,2586.2,3.86667]
[1727011575494,7.51296383,2586.3,2586.2,3.86667]
[1727011575751,5.24134219,2586.3,2586.2,3.86667]
[1727011579347,7.67734959,2586.3,2586.2,3.86667]
[1727011581842,7.67734829,2586.3,2586.2,3.86667]
[1727011582049,5.24134219,2586.3,2586.2,3.86667]
[1727011582210,7.67734886,2586.3,2586.2,3.86667]
[1727011583247,5.24134219,2586.3,2586.2,3.86667]
[1727011585235,2.96630149,2586.3,2586.2,3.86667]
[1727011585424,5.24151792,2586.3,2586.2,3.86667]
[1727011590102,5.24176956,2586.3,2586.2,3.86667]
[1727011593233,7.51339052,2586.3,2586.2,3.86667]
[1727011593632,5.24176956,2586.3,2586.2,3.86667]
[1727011593832,7.51339052,2586.3,2586.2,3.86667]
[1727011594954,7.51415795,2586.3,2586.2,3.86667]
[1727011596254,10.35786371,2586.3,2586.2,3.86667]
[1727011596453,8.08624275,2586.3,2586.2,3.86667]
[1727011596655,10.35786371,2586.3,2586.2,3.86667]
[1727011596844,8.08624275,2586.3,2586.2,3.86667]
[1727011597045,10.35786371,2586.3,2586.2,3.86667]
[1727011597240,8.08624275,2586.3,2586.2,3.86667]
[1727011597437,10.35786371,2586.3,2586.2,3.86667]
[1727011597641,8.08624275,2586.3,2586.2,3.86667]
[1727011597838,10.35786371,2586.3,2586.2,3.86667]
[1727011598084,8.08624275,2586.3,2586.2,3.86667]
[1727011598246,10.35786371,2586.3,2586.2,3.86667]
[1727011598443,8.08624275,2586.3,2586.2,3.86667]
[1727011598671,10.35786371,2586.3,2586.2,3.86667]
[1727011598878,8.08624275,2586.3,2586.2,3.86667]
[1727011599195,10.35786371,2586.3,2586.2,3.86667]
[1727011599356,8.08624275,2586.3,2586.2,3.86667]
[1727011599560,10.35786371,2586.3,2586.2,3.86667]
[1727011599778,8.08624275,2586.3,2586.2,3.86667]
[1727011599965,10.35923535,2586.3,2586.2,3.86667]
[1727011600163,8.08761439,2586.3,2586.2,3.86667]
[1727011600364,10.35923535,2586.3,2586.2,3.86667]
[1727011600703,8.08761439,2586.3,2586.2,3.86667]
[1727011601010,10.35923535,2586.3,2586.2,3.86667]
[1727011601301,8.08761439,2586.3,2586.2,3.86667]
[1727011601489,10.35923535,2586.3,2586.2,3.86667]
[1727011601694,8.08761439,2586.3,2586.2,3.86667]
[1727011601909,10.35923535,2586.3,2586.2,3.86667]
[1727011602200,8.08761439,2586.3,2586.2,3.86667]
[1727011602411,10.35923535,2586.3,2586.2,3.86667]
[1727011603165,8.08761439,2586.3,2586.2,3.86667]
[1727011603380,10.35923535,2586.3,2586.2,3.86667]
[1727011604695,7.51491711,2586.3,2586.2,3.86667]
[1727011604905,10.35957244,2586.3,2586.2,3.86667]
[1727011609687,10.36012415,2586.3,2586.2,3.86667]
[1727011610958,7.51516253,2586.3,2586.2,3.86667]
[1727011613519,10.36012415,2586.3,2586.2,3.86667]
[1727011614592,10.36098582,2586.3,2586.2,3.86667]
[1727011619504,10.36126443,2586.3,2586.2,3.86667]
[1727011621950,6.36610382,2586.3,2586.2,3.86667]
[1727011623842,4.09448286,2586.3,2586.2,10.14494235]
[1727011624157,5.72005307,2586.3,2586.2,10.14494235]
[1727011624357,3.0898558,2586.3,2586.2,10.14494235]
[1727011624925,3.0898558,2586.3,2586.2,11.54610959]
[1727011625366,2.27776065,2586.3,2586.2,10.9976343]
[1727011625522,3.0898558,2586.3,2586.2,10.9976343]
[1727011625718,3.0898558,2586.3,2586.2,11.17483933]
[1727011626441,0.91110426,2586.3,2586.2,11.17483933]
[1727011627164,3.08277803,2586.3,2586.2,11.17483933]
[1727011627330,2.27068288,2586.3,2586.2,11.17483933]
[1727011627534,0.81209515,2586.4,2586.3,9.25352]
[1727011627760,3.0774898,2586.4,2586.3,11.14432893]
[1727011629531,3.0774898,2586.4,2586.3,11.09432893]
[1727011631938,0.90615786,2586.4,2586.3,11.09432893]
[1727011635199,0.81209515,2586.5,2586.4,6.86637]
[1727011635402,3.0751198,2586.5,2586.4,6.86637]
[1727011635759,3.07494008,2586.5,2586.4,6.86637]
[1727011637163,3.07474828,2586.5,2586.4,6.86637]
[1727011637567,0.90506125,2586.5,2586.4,6.86637]
[1727011638501,0.90506125,2586.5,2586.4,7.97769023]
[1727011638708,0.81209515,2586.6,2586.5,3.86622]
[1727011638878,3.07432733,2586.6,2586.5,6.86622]
[1727011639588,3.07432733,2586.6,2586.5,9.19392]
[1727011639909,2.26223218,2586.6,2586.5,9.19392]
[1727011640113,3.07432733,2586.6,2586.5,9.19392]
[1727011640472,2.26223218,2586.6,2586.5,9.19392]
[1727011640671,0.90489287,2586.6,2586.5,9.19392]
[1727011641281,0.90489287,2586.6,2586.5,11.17408198]
[1727011641622,0.81209515,2586.8,2586.7,6.86592]
[1727011641823,3.07366928,2586.8,2586.7,6.86592]
[1727011642125,3.07365836,2586.8,2586.7,6.86592]
[1727011646932,3.07295655,2586.8,2586.7,6.86592]
[1727011651633,3.07307783,2586.8,2586.7,6.86592]
[1727011652726,2.26098268,2586.8,2586.7,6.86592]
[1727011653450,3.07066639,2586.8,2586.7,6.86592]
[1727011653782,6.44954889,2586.8,2586.7,6.86592]
[1727011653928,8.66507435,2586.8,2586.7,6.86592]
[1727011656656,8.66624449,2586.8,2586.7,6.86592]
[1727011658325,9.06578291,2586.8,2586.7,6.86592]
[1727011659668,6.68788291,2586.8,2586.7,6.86592]
[1727011659873,9.00518291,2586.8,2586.7,6.86592]
[1727011660238,6.98007428,2586.8,2586.7,6.86592]
[1727011661475,6.98148607,2586.8,2586.7,6.86592]
[1727011662651,9.41317382,2586.8,2586.7,6.86592]
[1727011664672,9.41488453,2586.8,2586.7,6.86592]
[1727011666387,9.41744694,2586.8,2586.7,6.86592]
[1727011667472,6.98354864,2586.8,2586.7,6.86592]
[1727011676316,6.98455704,2586.8,2586.7,6.86592]
[1727011678980,9.41932729,2586.8,2586.7,6.86592]
[1727011679406,9.41931462,2586.8,2586.7,6.86592]
[1727011680617,4.71792146,2586.8,2586.7,6.86592]
[1727011680813,9.41900086,2586.8,2586.7,6.86592]
[1727011681118,6.98430036,2586.8,2586.7,6.86592]